[Event "Early-Titled-Tuesday-Blitz-May-14-2024"]
[Site "Chess.com"]
[Date "2024.05.14"]
[Round "5"]
[White "Triumphmate"]
[Black "BardArtem"]
[Result "0-1"]
[WhiteElo "2496"]
[BlackElo "2766"]
[TimeControl "180+1"]
[EndTime "8:58:23 PDT"]
[Termination "BardArtem won by checkmate"]

1. e4 {[%clk 0:02:58.4]} 1... e5 {[%clk 0:02:56.7]} 2. Nf3 {[%clk 0:02:59]} 2...
Nc6 {[%clk 0:02:56.5]} 3. Nc3 {[%clk 0:02:59.8]} 3... Nf6 {[%clk 0:02:50.7]} 4.
Bb5 {[%clk 0:02:47.9]} 4... Bb4 {[%clk 0:02:46.3]} 5. O-O {[%clk 0:02:42.1]}
5... O-O {[%clk 0:02:45.3]} 6. d3 {[%clk 0:02:42.8]} 6... Bxc3 {[%clk
0:02:45.3]} 7. bxc3 {[%clk 0:02:43.7]} 7... d6 {[%clk 0:02:46.2]} 8. Bg5 {[%clk
0:02:44.3]} 8... Ne7 {[%clk 0:02:44.9]} 9. Bxf6 {[%clk 0:02:44.4]} 9... gxf6
{[%clk 0:02:45.8]} 10. Nh4 {[%clk 0:02:45.3]} 10... Ng6 {[%clk 0:02:42.4]} 11.
Nxg6 {[%clk 0:02:44.9]} 11... hxg6 {[%clk 0:02:39.6]} 12. f4 {[%clk 0:02:45.8]}
12... Kg7 {[%clk 0:02:33.1]} 13. Qf3 {[%clk 0:02:44.3]} 13... c6 {[%clk
0:02:28.3]} 14. Ba4 {[%clk 0:02:31.6]} 14... Qe7 {[%clk 0:02:19]} 15. Rf2 {[%clk
0:02:26.8]} 15... a5 {[%clk 0:02:10.2]} 16. c4 {[%clk 0:02:24.9]} 16... Be6
{[%clk 0:02:02.6]} 17. Raf1 {[%clk 0:02:07.1]} 17... exf4 {[%clk 0:01:28]} 18.
Qxf4 {[%clk 0:01:55]} 18... f5 {[%clk 0:01:27]} 19. exf5 {[%clk 0:01:34]} 19...
Bxf5 {[%clk 0:01:25.9]} 20. Qg3 {[%clk 0:01:34.9]} 20... Qe5 {[%clk 0:01:18.7]}
21. Rf4 {[%clk 0:01:21.1]} 21... Rae8 {[%clk 0:01:08.6]} 22. Kh1 {[%clk
0:01:19.1]} 22... b5 {[%clk 0:00:54.1]} 23. d4 {[%clk 0:01:10.7]} 23... Qe3
{[%clk 0:00:37.8]} 24. cxb5 {[%clk 0:00:59]} 24... Qxg3 {[%clk 0:00:32.5]} 25.
hxg3 {[%clk 0:00:59.9]} 25... cxb5 {[%clk 0:00:30.4]} 26. Bxb5 {[%clk
0:01:00.8]} 26... Rb8 {[%clk 0:00:25.7]} 27. c4 {[%clk 0:01:00.1]} 27... Be6
{[%clk 0:00:13.8]} 28. a4 {[%clk 0:00:57]} 28... f5 {[%clk 0:00:09]} 29. d5
{[%clk 0:00:55.3]} 29... Bf7 {[%clk 0:00:07.7]} 30. Re1 {[%clk 0:00:53.9]} 30...
Kf6 {[%clk 0:00:07.3]} 31. c5 {[%clk 0:00:46.7]} 31... dxc5 {[%clk 0:00:07.1]}
32. Rc4 {[%clk 0:00:47.1]} 32... Bxd5 {[%clk 0:00:05.5]} 33. Rxc5 {[%clk
0:00:45.5]} 33... Be4 {[%clk 0:00:06]} 34. Kg1 {[%clk 0:00:30]} 34... Rbd8
{[%clk 0:00:02.9]} 35. g4 {[%clk 0:00:25.3]} 35... Rd2 {[%clk 0:00:02.4]} 36.
Re2 {[%clk 0:00:26]} 36... Rxe2 {[%clk 0:00:01.7]} 37. Bxe2 {[%clk 0:00:26.9]}
37... f4 {[%clk 0:00:01.8]} 38. g5+ {[%clk 0:00:23.4]} 38... Ke6 {[%clk
0:00:01.3]} 39. Rxa5 {[%clk 0:00:23.9]} 39... Rd8 {[%clk 0:00:01.7]} 40. Bc4+
{[%clk 0:00:23.2]} 40... Kd6 {[%clk 0:00:01.6]} 41. Ra7 {[%clk 0:00:19.7]} 41...
Rc8 {[%clk 0:00:02]} 42. Bf1 {[%clk 0:00:17.4]} 42... Rc1 {[%clk 0:00:02.6]} 43.
Kf2 {[%clk 0:00:17]} 43... Rc2+ {[%clk 0:00:03.3]} 44. Ke1 {[%clk 0:00:16.8]}
44... Ra2 {[%clk 0:00:03.2]} 45. Rf7 {[%clk 0:00:16.9]} 45... Ke5 {[%clk
0:00:02.4]} 46. Re7+ {[%clk 0:00:16.8]} 46... Kd4 {[%clk 0:00:02.9]} 47. Rf7
{[%clk 0:00:15]} 47... Ke3 {[%clk 0:00:03.2]} 48. Kd1 {[%clk 0:00:12.9]} 48...
Ra1# {[%clk 0:00:03]} 0-1

[Event "Early-Titled-Tuesday-Blitz-May-14-2024"]
[Site "Chess.com"]
[Date "2024.05.14"]
[Round "5"]
[White "Aygehovit1992"]
[Black "Orest_Vovk"]
[Result "1-0"]
[WhiteElo "2863"]
[BlackElo "2671"]
[TimeControl "180+1"]
[EndTime "8:58:24 PDT"]
[Termination "Aygehovit1992 won on time"]

1. e4 {[%clk 0:02:50.6]} 1... g5 {[%clk 0:02:59.8]} 2. d4 {[%clk 0:02:50.5]}
2... g4 {[%clk 0:03:00.1]} 3. h3 {[%clk 0:02:45.2]} 3... d5 {[%clk 0:02:58.9]}
4. exd5 {[%clk 0:02:43.5]} 4... Qxd5 {[%clk 0:02:58.3]} 5. hxg4 {[%clk
0:02:43.8]} 5... Bg7 {[%clk 0:02:54.9]} 6. Be3 {[%clk 0:02:40.1]} 6... Nc6
{[%clk 0:02:48.1]} 7. c4 {[%clk 0:02:39.7]} 7... Qa5+ {[%clk 0:02:45.7]} 8. Nc3
{[%clk 0:02:39.4]} 8... Nf6 {[%clk 0:02:36.6]} 9. Be2 {[%clk 0:02:32.4]} 9...
Ne4 {[%clk 0:02:32.1]} 10. Qd3 {[%clk 0:02:32]} 10... Nxc3 {[%clk 0:02:29.2]}
11. Qxc3 {[%clk 0:02:31.6]} 11... Qxc3+ {[%clk 0:02:18.5]} 12. bxc3 {[%clk
0:02:29.3]} 12... Bd7 {[%clk 0:02:12.8]} 13. f4 {[%clk 0:02:14.5]} 13... O-O-O
{[%clk 0:02:10.4]} 14. Nh3 {[%clk 0:02:11.9]} 14... h6 {[%clk 0:02:08.3]} 15.
Nf2 {[%clk 0:02:10.7]} 15... Na5 {[%clk 0:02:07.5]} 16. c5 {[%clk 0:02:04.7]}
16... b6 {[%clk 0:01:59]} 17. cxb6 {[%clk 0:02:00.5]} 17... axb6 {[%clk
0:01:59]} 18. Rh5 {[%clk 0:01:52.4]} 18... Bc6 {[%clk 0:01:52.4]} 19. Kf1 {[%clk
0:01:49.3]} 19... Bd5 {[%clk 0:01:46.2]} 20. Bf3 {[%clk 0:01:34.1]} 20... Bxf3
{[%clk 0:01:34.2]} 21. gxf3 {[%clk 0:01:35]} 21... Nc4 {[%clk 0:01:34.3]} 22.
Ke2 {[%clk 0:01:35.4]} 22... Kb7 {[%clk 0:01:29.1]} 23. a4 {[%clk 0:01:34.9]}
23... Ra8 {[%clk 0:01:16.8]} 24. Nd3 {[%clk 0:01:34.6]} 24... Ra7 {[%clk
0:01:08.1]} 25. Ne5 {[%clk 0:01:34.7]} 25... Nd6 {[%clk 0:00:57.9]} 26. f5
{[%clk 0:01:18.4]} 26... Bxe5 {[%clk 0:00:43.9]} 27. dxe5 {[%clk 0:01:18.2]}
27... Nc4 {[%clk 0:00:44.8]} 28. f4 {[%clk 0:01:05.9]} 28... Rha8 {[%clk
0:00:29.5]} 29. Rxh6 {[%clk 0:01:04.4]} 29... Rxa4 {[%clk 0:00:29.7]} 30. Rxa4
{[%clk 0:01:05.2]} 30... Rxa4 {[%clk 0:00:30.1]} 31. Rh7 {[%clk 0:01:00.9]}
31... Ra2+ {[%clk 0:00:29.5]} 32. Kd3 {[%clk 0:01:00.9]} 32... Nb2+ {[%clk
0:00:26.3]} 33. Ke4 {[%clk 0:01:00.7]} 33... Nd1 {[%clk 0:00:23.6]} 34. Bd4
{[%clk 0:00:55.4]} 34... c5 {[%clk 0:00:23.5]} 35. Rxf7 {[%clk 0:00:54.6]} 35...
cxd4 {[%clk 0:00:23.1]} 36. Rxe7+ {[%clk 0:00:55.1]} 36... Kc6 {[%clk
0:00:23.2]} 37. Re6+ {[%clk 0:00:55.3]} 37... Kc7 {[%clk 0:00:18.9]} 38. cxd4
{[%clk 0:00:43.6]} 38... Re2+ {[%clk 0:00:16]} 39. Kd3 {[%clk 0:00:38.8]} 39...
Rf2 {[%clk 0:00:12.4]} 40. f6 {[%clk 0:00:27.5]} 40... Rxf4 {[%clk 0:00:12]} 41.
g5 {[%clk 0:00:28.1]} 41... Nf2+ {[%clk 0:00:05.4]} 42. Ke3 {[%clk 0:00:28]}
42... Rf5 {[%clk 0:00:05.5]} 43. g6 {[%clk 0:00:27.9]} 43... Ng4+ {[%clk
0:00:05.9]} 44. Ke4 {[%clk 0:00:27.4]} 44... Rf1 {[%clk 0:00:05.9]} 45. g7
{[%clk 0:00:26.7]} 45... Nh6 {[%clk 0:00:06.2]} 46. Re7+ {[%clk 0:00:23.2]}
46... Kc6 {[%clk 0:00:05]} 47. d5+ {[%clk 0:00:22.8]} 47... Kc5 {[%clk
0:00:05.4]} 48. Rc7+ {[%clk 0:00:23.1]} 48... Kb5 {[%clk 0:00:05.7]} 49. d6
{[%clk 0:00:20.4]} 49... Re1+ {[%clk 0:00:05.6]} 50. Kf4 {[%clk 0:00:20.5]}
50... Rf1+ {[%clk 0:00:05.8]} 51. Kg5 {[%clk 0:00:20.1]} 51... Rh1 {[%clk
0:00:03.6]} 52. d7 {[%clk 0:00:18.8]} 52... Nf7+ {[%clk 0:00:02.2]} 53. Kf5
{[%clk 0:00:18.8]} 53... Rf1+ {[%clk 0:00:01.9]} 54. Ke6 {[%clk 0:00:18.9]}
54... Ng5+ {[%clk 0:00:01.8]} 55. Ke7 {[%clk 0:00:19.1]} 1-0

[Event "Early-Titled-Tuesday-Blitz-May-14-2024"]
[Site "Chess.com"]
[Date "2024.05.14"]
[Round "5"]
[White "Mikasinski"]
[Black "ProtectiveCarrot"]
[Result "1-0"]
[WhiteElo "2669"]
[BlackElo "2510"]
[TimeControl "180+1"]
[EndTime "8:58:24 PDT"]
[Termination "Mikasinski won on time"]

1. e4 {[%clk 0:03:00.9]} 1... c6 {[%clk 0:02:58.7]} 2. d4 {[%clk 0:03:00.8]}
2... d5 {[%clk 0:02:59.6]} 3. e5 {[%clk 0:03:01.5]} 3... Bf5 {[%clk 0:02:59.2]}
4. h4 {[%clk 0:03:01.3]} 4... a6 {[%clk 0:02:57.6]} 5. Ne2 {[%clk 0:03:00.7]}
5... Qc7 {[%clk 0:02:53.3]} 6. Ng3 {[%clk 0:02:58.8]} 6... Bd7 {[%clk
0:02:53.1]} 7. c4 {[%clk 0:02:59.1]} 7... e6 {[%clk 0:02:48.6]} 8. c5 {[%clk
0:02:57.5]} 8... b6 {[%clk 0:02:47]} 9. cxb6 {[%clk 0:02:58.4]} 9... Qxb6 {[%clk
0:02:47.1]} 10. Nc3 {[%clk 0:02:58.3]} 10... c5 {[%clk 0:02:44.6]} 11. Be3
{[%clk 0:02:48.1]} 11... Qxb2 {[%clk 0:02:36.9]} 12. Nge2 {[%clk 0:02:47.1]}
12... cxd4 {[%clk 0:02:24.4]} 13. Rb1 {[%clk 0:02:40.6]} 13... Qa3 {[%clk
0:02:22.6]} 14. Bxd4 {[%clk 0:02:27.6]} 14... Nc6 {[%clk 0:02:22.3]} 15. Rh3
{[%clk 0:02:18.4]} 15... Nxd4 {[%clk 0:02:15.4]} 16. Qxd4 {[%clk 0:02:17.2]}
16... Bc5 {[%clk 0:02:11.6]} 17. Qg4 {[%clk 0:02:16.4]} 17... Ne7 {[%clk
0:02:04.1]} 18. Qxg7 {[%clk 0:02:10.7]} 18... Rg8 {[%clk 0:02:03.4]} 19. Qxh7
{[%clk 0:02:11.3]} 19... Qa5 {[%clk 0:01:51.9]} 20. Qd3 {[%clk 0:01:45.9]} 20...
Nc6 {[%clk 0:01:38.4]} 21. Qd2 {[%clk 0:01:24.1]} 21... Nxe5 {[%clk 0:01:35.2]}
22. Nd4 {[%clk 0:01:22.9]} 22... Rg4 {[%clk 0:01:27.1]} 23. Nb3 {[%clk 0:01:19]}
23... Qc7 {[%clk 0:01:20.5]} 24. Rc1 {[%clk 0:01:06.4]} 24... Ba3 {[%clk
0:01:19.7]} 25. Nxd5 {[%clk 0:01:02]} 25... Qd8 {[%clk 0:01:05.8]} 26. Nc7+
{[%clk 0:00:32.9]} 26... Kf8 {[%clk 0:01:05.6]} 27. Nxa8 {[%clk 0:00:33.1]}
27... Bxc1 {[%clk 0:01:04.7]} 28. Qd6+ {[%clk 0:00:29.4]} 28... Kg8 {[%clk
0:00:54.2]} 29. Qxe5 {[%clk 0:00:29.6]} 29... Bc6 {[%clk 0:00:45]} 30. Rg3
{[%clk 0:00:22.3]} 30... Qxh4 {[%clk 0:00:35.2]} 31. Rxg4+ {[%clk 0:00:20.5]}
31... Qxg4 {[%clk 0:00:35.3]} 32. Qg3 {[%clk 0:00:15.3]} 32... Qxg3 {[%clk
0:00:29.8]} 33. fxg3 {[%clk 0:00:16.2]} 33... Bb2 {[%clk 0:00:19]} 34. Nb6
{[%clk 0:00:13.8]} 34... Be5 {[%clk 0:00:15.2]} 35. Bxa6 {[%clk 0:00:11.5]}
35... Bxg2 {[%clk 0:00:14]} 36. Kf2 {[%clk 0:00:11.5]} 36... Bc6 {[%clk
0:00:13.5]} 37. Nc4 {[%clk 0:00:11.2]} 37... Bc7 {[%clk 0:00:12.5]} 38. Nd4
{[%clk 0:00:09.8]} 38... Bd5 {[%clk 0:00:11.6]} 39. a4 {[%clk 0:00:07.8]} 39...
Bxc4 {[%clk 0:00:10.4]} 40. Bxc4 {[%clk 0:00:07.7]} 40... Bb6 {[%clk 0:00:11]}
41. Ke3 {[%clk 0:00:06]} 41... e5 {[%clk 0:00:11.7]} 42. Ke4 {[%clk 0:00:04.8]}
42... Bxd4 {[%clk 0:00:11.4]} 43. a5 {[%clk 0:00:04.8]} 43... Kg7 {[%clk
0:00:11.5]} 44. Kd5 {[%clk 0:00:02.8]} 44... Kg6 {[%clk 0:00:10]} 45. Kc6 {[%clk
0:00:02.2]} 45... e4 {[%clk 0:00:08.1]} 46. Bd5 {[%clk 0:00:01.9]} 46... e3
{[%clk 0:00:07.6]} 47. Bf3 {[%clk 0:00:02.6]} 47... Kg5 {[%clk 0:00:03.1]} 48.
Kd5 {[%clk 0:00:03.2]} 48... Ba7 {[%clk 0:00:02.5]} 49. Ke4 {[%clk 0:00:03.8]}
49... f5+ {[%clk 0:00:01.7]} 50. Kd3 {[%clk 0:00:04.5]} 1-0

[Event "Early-Titled-Tuesday-Blitz-May-14-2024"]
[Site "Chess.com"]
[Date "2024.05.14"]
[Round "5"]
[White "talaicito"]
[Black "martinez_95"]
[Result "0-1"]
[WhiteElo "2376"]
[BlackElo "2172"]
[TimeControl "180+1"]
[EndTime "8:58:24 PDT"]
[Termination "martinez_95 won on time"]

1. d4 {[%clk 0:02:58]} 1... Nf6 {[%clk 0:02:56.9]} 2. Nc3 {[%clk 0:02:52.2]}
2... e6 {[%clk 0:02:57.3]} 3. Bf4 {[%clk 0:02:51.3]} 3... a6 {[%clk 0:02:52.7]}
4. e4 {[%clk 0:02:49.9]} 4... d5 {[%clk 0:02:50.9]} 5. e5 {[%clk 0:02:46.8]}
5... Nfd7 {[%clk 0:02:50.4]} 6. Be3 {[%clk 0:02:43.7]} 6... c5 {[%clk
0:02:49.8]} 7. Nce2 {[%clk 0:02:42.6]} 7... Nc6 {[%clk 0:02:49.5]} 8. c3 {[%clk
0:02:42.3]} 8... Qb6 {[%clk 0:02:48.5]} 9. Rb1 {[%clk 0:02:41.7]} 9... cxd4
{[%clk 0:02:47.4]} 10. cxd4 {[%clk 0:02:39.6]} 10... Bb4+ {[%clk 0:02:47.4]} 11.
Nc3 {[%clk 0:02:37.9]} 11... Ndxe5 {[%clk 0:02:38.5]} 12. Nf3 {[%clk 0:02:30.1]}
12... Nxf3+ {[%clk 0:02:37.2]} 13. gxf3 {[%clk 0:02:31]} 13... e5 {[%clk
0:02:11.2]} 14. a3 {[%clk 0:02:16.8]} 14... exd4 {[%clk 0:02:11]} 15. axb4
{[%clk 0:02:12.9]} 15... dxe3 {[%clk 0:02:04.7]} 16. Nxd5 {[%clk 0:02:12.6]}
16... exf2+ {[%clk 0:02:04.7]} 17. Ke2 {[%clk 0:02:09.2]} 17... Qd8 {[%clk
0:01:33.5]} 18. Kxf2 {[%clk 0:02:09.3]} 18... Be6 {[%clk 0:01:22.5]} 19. Ne3
{[%clk 0:01:37.5]} 19... Qh4+ {[%clk 0:01:20.5]} 20. Kg1 {[%clk 0:01:27.5]}
20... Rd8 {[%clk 0:01:19.4]} 21. Qe1 {[%clk 0:01:22.4]} 21... Qg5+ {[%clk
0:01:06.4]} 22. Ng2 {[%clk 0:01:22.1]} 22... O-O {[%clk 0:00:53.7]} 23. h4
{[%clk 0:01:22.3]} 23... Qe5 {[%clk 0:00:48.3]} 24. Qf2 {[%clk 0:01:12.4]} 24...
Nd4 {[%clk 0:00:45.3]} 25. h5 {[%clk 0:01:08]} 25... Qf5 {[%clk 0:00:40.1]} 26.
Nh4 {[%clk 0:01:05.8]} 26... Qxb1 {[%clk 0:00:38.9]} 27. Kh2 {[%clk 0:01:03.1]}
27... Qc2 {[%clk 0:00:33.4]} 28. Qxc2 {[%clk 0:00:54.6]} 28... Nxc2 {[%clk
0:00:34.3]} 29. h6 {[%clk 0:00:55.4]} 29... g6 {[%clk 0:00:31.7]} 30. Rg1 {[%clk
0:00:51.2]} 30... Rd2+ {[%clk 0:00:30.7]} 31. Kg3 {[%clk 0:00:44.1]} 31... Nxb4
{[%clk 0:00:28.9]} 32. f4 {[%clk 0:00:40.7]} 32... f5 {[%clk 0:00:25.6]} 33. Nf3
{[%clk 0:00:38.5]} 33... Rxb2 {[%clk 0:00:24.3]} 34. Ng5 {[%clk 0:00:38.3]}
34... Ba2 {[%clk 0:00:19.6]} 35. Bh3 {[%clk 0:00:34.9]} 35... Rb3+ {[%clk
0:00:15]} 36. Kh4 {[%clk 0:00:34.4]} 36... Nd5 {[%clk 0:00:13.5]} 37. Bf1 {[%clk
0:00:26.9]} 37... Rb2 {[%clk 0:00:11.3]} 38. Kg3 {[%clk 0:00:21.7]} 38... Re8
{[%clk 0:00:09.7]} 39. Nh3 {[%clk 0:00:15.3]} 39... Re3+ {[%clk 0:00:09.5]} 40.
Kh4 {[%clk 0:00:15.5]} 40... Rh2 {[%clk 0:00:07.4]} 41. Bg2 {[%clk 0:00:09.2]}
41... Nxf4 {[%clk 0:00:06.1]} 42. Rh1 {[%clk 0:00:03.4]} 42... Nxg2+ {[%clk
0:00:04.8]} 43. Kg5 {[%clk 0:00:02.1]} 43... Rxh1 {[%clk 0:00:04.3]} 44. Kf6
{[%clk 0:00:02.1]} 44... Re6+ {[%clk 0:00:03.6]} 45. Kg5 {[%clk 0:00:00.6]}
45... f4 {[%clk 0:00:01.5]} 0-1

[Event "Early-Titled-Tuesday-Blitz-May-14-2024"]
[Site "Chess.com"]
[Date "2024.05.14"]
[Round "5"]
[White "Arhan_Anand"]
[Black "Legendinunknown"]
[Result "1/2-1/2"]
[WhiteElo "2641"]
[BlackElo "2829"]
[TimeControl "180+1"]
[EndTime "8:58:26 PDT"]
[Termination "Game drawn - insufficient material"]

1. d4 {[%clk 0:03:00.9]} 1... Nf6 {[%clk 0:02:59.4]} 2. c4 {[%clk 0:03:00.8]}
2... c6 {[%clk 0:02:59.1]} 3. Nc3 {[%clk 0:02:59.4]} 3... d5 {[%clk 0:02:59.2]}
4. e3 {[%clk 0:02:59.2]} 4... e6 {[%clk 0:02:58.7]} 5. Nf3 {[%clk 0:02:59.4]}
5... Nbd7 {[%clk 0:02:58.4]} 6. Be2 {[%clk 0:02:59.4]} 6... Bd6 {[%clk 0:02:57]}
7. O-O {[%clk 0:02:59.2]} 7... O-O {[%clk 0:02:57]} 8. b3 {[%clk 0:02:59.5]}
8... b6 {[%clk 0:02:57.1]} 9. Bb2 {[%clk 0:02:59.4]} 9... Bb7 {[%clk 0:02:57.4]}
10. Bd3 {[%clk 0:02:59.8]} 10... Qe7 {[%clk 0:02:57.2]} 11. e4 {[%clk
0:02:56.7]} 11... dxe4 {[%clk 0:02:56.9]} 12. Nxe4 {[%clk 0:02:57.6]} 12... Nxe4
{[%clk 0:02:57.4]} 13. Bxe4 {[%clk 0:02:58.5]} 13... Nf6 {[%clk 0:02:57.8]} 14.
Bc2 {[%clk 0:02:57.4]} 14... c5 {[%clk 0:02:58.1]} 15. dxc5 {[%clk 0:02:57.4]}
15... Bxc5 {[%clk 0:02:58.1]} 16. Qe2 {[%clk 0:02:57.5]} 16... Rad8 {[%clk
0:02:57.1]} 17. Rad1 {[%clk 0:02:56.9]} 17... h6 {[%clk 0:02:56.7]} 18. h3
{[%clk 0:02:56]} 18... Bd6 {[%clk 0:02:47.5]} 19. Ne5 {[%clk 0:02:55.3]} 19...
Bb8 {[%clk 0:02:45.9]} 20. Ng4 {[%clk 0:02:38.2]} 20... Nxg4 {[%clk 0:02:43.8]}
21. Qxg4 {[%clk 0:02:39.1]} 21... f5 {[%clk 0:02:44.4]} 22. Qg6 {[%clk
0:02:34.2]} 22... Qf7 {[%clk 0:02:39.4]} 23. Qxf7+ {[%clk 0:02:33.8]} 23... Kxf7
{[%clk 0:02:39.4]} 24. Rfe1 {[%clk 0:02:29.5]} 24... g6 {[%clk 0:02:38.1]} 25.
Kf1 {[%clk 0:02:29.2]} 25... Bc7 {[%clk 0:02:33.8]} 26. f3 {[%clk 0:02:15.7]}
26... Bg3 {[%clk 0:02:32.2]} 27. Rxd8 {[%clk 0:02:14.1]} 27... Rxd8 {[%clk
0:02:32.2]} 28. Rd1 {[%clk 0:02:15]} 28... Rxd1+ {[%clk 0:02:31.5]} 29. Bxd1
{[%clk 0:02:15.9]} 29... e5 {[%clk 0:02:31.9]} 30. Bc3 {[%clk 0:02:13.8]} 30...
e4 {[%clk 0:02:28.8]} 31. fxe4 {[%clk 0:02:09]} 31... Bxe4 {[%clk 0:02:28.4]}
32. Bf3 {[%clk 0:02:08.8]} 32... Bd3+ {[%clk 0:02:05.7]} 33. Kg1 {[%clk
0:02:07.8]} 33... Bb1 {[%clk 0:02:05.5]} 34. a3 {[%clk 0:02:07.3]} 34... Ba2
{[%clk 0:02:05.4]} 35. Bd5+ {[%clk 0:02:07.4]} 35... Ke7 {[%clk 0:02:05.5]} 36.
b4 {[%clk 0:02:08.3]} 36... b5 {[%clk 0:02:04]} 37. Bd4 {[%clk 0:01:56.1]} 37...
bxc4 {[%clk 0:01:00.3]} 38. Bxa7 {[%clk 0:01:54.7]} 38... Kd6 {[%clk 0:01:00.4]}
39. Bf3 {[%clk 0:01:52.2]} 39... Ke6 {[%clk 0:00:50.1]} 40. Be3 {[%clk
0:01:45.9]} 40... c3 {[%clk 0:00:45.1]} 41. Kf1 {[%clk 0:01:44]} 41... f4 {[%clk
0:00:36.6]} 42. Bc1 {[%clk 0:01:43.3]} 42... Bc4+ {[%clk 0:00:35.7]} 43. Be2
{[%clk 0:01:43]} 43... Kd5 {[%clk 0:00:35.7]} 44. b5 {[%clk 0:01:31.8]} 44... g5
{[%clk 0:00:22.5]} 45. a4 {[%clk 0:01:14.2]} 45... h5 {[%clk 0:00:17.6]} 46. a5
{[%clk 0:01:11.5]} 46... g4 {[%clk 0:00:09.5]} 47. hxg4 {[%clk 0:01:10.6]} 47...
hxg4 {[%clk 0:00:05.9]} 48. a6 {[%clk 0:01:09.6]} 48... Bxe2+ {[%clk 0:00:01.2]}
49. Kxe2 {[%clk 0:01:10.5]} 49... f3+ {[%clk 0:00:01.8]} 50. gxf3 {[%clk
0:01:11.2]} 50... gxf3+ {[%clk 0:00:02.7]} 51. Kxf3 {[%clk 0:01:11.7]} 51... Bb8
{[%clk 0:00:03.4]} 52. Be3 {[%clk 0:00:55]} 52... c2 {[%clk 0:00:02.4]} 53. Ke2
{[%clk 0:00:53]} 53... Ba7 {[%clk 0:00:01.9]} 54. Bf4 {[%clk 0:00:28.9]} 54...
Kc4 {[%clk 0:00:02.3]} 55. Kd2 {[%clk 0:00:28.1]} 55... Kxb5 {[%clk 0:00:02.7]}
56. Kxc2 {[%clk 0:00:28.2]} 56... Kxa6 {[%clk 0:00:03.6]} 1/2-1/2

[Event "Early-Titled-Tuesday-Blitz-May-14-2024"]
[Site "Chess.com"]
[Date "2024.05.14"]
[Round "5"]
[White "Denis_Makhnyov"]
[Black "GothamChess"]
[Result "1-0"]
[WhiteElo "2988"]
[BlackElo "2725"]
[TimeControl "180+1"]
[EndTime "8:58:27 PDT"]
[Termination "Denis_Makhnyov won on time"]

1. d4 {[%clk 0:02:59]} 1... d5 {[%clk 0:02:57.4]} 2. c4 {[%clk 0:02:58.7]} 2...
dxc4 {[%clk 0:02:56]} 3. Nf3 {[%clk 0:02:58.6]} 3... Nf6 {[%clk 0:02:55.8]} 4.
Nc3 {[%clk 0:02:58.3]} 4... a6 {[%clk 0:02:55.5]} 5. e4 {[%clk 0:02:47.8]} 5...
b5 {[%clk 0:02:54.1]} 6. e5 {[%clk 0:02:48.2]} 6... Nd5 {[%clk 0:02:52.8]} 7.
Ng5 {[%clk 0:02:48.5]} 7... e6 {[%clk 0:02:37.4]} 8. Qf3 {[%clk 0:02:44.5]} 8...
Qd7 {[%clk 0:02:17]} 9. Be2 {[%clk 0:02:25.9]} 9... Bb7 {[%clk 0:02:08.6]} 10.
Qh3 {[%clk 0:02:21.6]} 10... h6 {[%clk 0:01:50.1]} 11. O-O {[%clk 0:02:18.4]}
11... Nc6 {[%clk 0:01:30.7]} 12. Rd1 {[%clk 0:02:17.9]} 12... Rg8 {[%clk
0:01:20.7]} 13. Nge4 {[%clk 0:02:10.9]} 13... Be7 {[%clk 0:01:11.8]} 14. Be3
{[%clk 0:02:07.3]} 14... Ncb4 {[%clk 0:01:06.2]} 15. Rd2 {[%clk 0:01:57.4]}
15... Nxc3 {[%clk 0:00:47.2]} 16. Nxc3 {[%clk 0:01:55.7]} 16... Nd5 {[%clk
0:00:47.1]} 17. Bh5 {[%clk 0:01:48.6]} 17... Nxe3 {[%clk 0:00:40.6]} 18. fxe3
{[%clk 0:01:48.5]} 18... g6 {[%clk 0:00:40.2]} 19. Bf3 {[%clk 0:01:47.8]} 19...
c5 {[%clk 0:00:25.9]} 20. Qxh6 {[%clk 0:01:09]} 20... O-O-O {[%clk 0:00:21.4]}
21. Bxb7+ {[%clk 0:00:58.2]} 21... Qxb7 {[%clk 0:00:20.6]} 22. Qf4 {[%clk
0:00:58.9]} 22... cxd4 {[%clk 0:00:18.1]} 23. exd4 {[%clk 0:00:58.7]} 23... Bb4
{[%clk 0:00:13.4]} 24. a4 {[%clk 0:00:56.2]} 24... Rd7 {[%clk 0:00:12.8]} 25.
axb5 {[%clk 0:00:56]} 25... axb5 {[%clk 0:00:13.4]} 26. Rdd1 {[%clk 0:00:48.2]}
26... Rgd8 {[%clk 0:00:13]} 27. Ne4 {[%clk 0:00:48.6]} 27... Qc6 {[%clk
0:00:08.5]} 28. Qe3 {[%clk 0:00:39.7]} 28... Qb6 {[%clk 0:00:08.8]} 29. Ra8+
{[%clk 0:00:36.3]} 29... Kb7 {[%clk 0:00:08.9]} 30. Rxd8 {[%clk 0:00:32.5]}
30... Rxd8 {[%clk 0:00:09.3]} 31. Kf2 {[%clk 0:00:30.3]} 31... Rd7 {[%clk
0:00:08.7]} 32. h4 {[%clk 0:00:30.2]} 32... Qd8 {[%clk 0:00:04.7]} 33. g3 {[%clk
0:00:30]} 33... Be7 {[%clk 0:00:02.7]} 34. b3 {[%clk 0:00:29.2]} 34... cxb3
{[%clk 0:00:02.5]} 35. Qxb3 {[%clk 0:00:29.1]} 35... Qb6 {[%clk 0:00:03]} 36.
Ke3 {[%clk 0:00:27.6]} 36... Rd5 {[%clk 0:00:03.4]} 37. Kf4 {[%clk 0:00:22.9]}
37... Rxd4 {[%clk 0:00:03.4]} 38. Rxd4 {[%clk 0:00:22.7]} 38... Qxd4 {[%clk
0:00:04]} 39. Qxb5+ {[%clk 0:00:23.4]} 39... Kc7 {[%clk 0:00:04.7]} 40. Qe8
{[%clk 0:00:21.6]} 40... Qd7 {[%clk 0:00:03.6]} 41. Qxf7 {[%clk 0:00:19.4]}
41... g5+ {[%clk 0:00:04.1]} 42. hxg5 {[%clk 0:00:18.9]} 42... Kb6 {[%clk
0:00:03]} 43. Nd6 {[%clk 0:00:17]} 43... Kc5 {[%clk 0:00:01.4]} 44. g6 {[%clk
0:00:16.9]} 44... Kd4 {[%clk 0:00:01.6]} 45. g7 {[%clk 0:00:15.4]} 45... Qc6
{[%clk 0:00:00.7]} 46. Qxe6 {[%clk 0:00:09.7]} 46... Qc1+ {[%clk 0:00:01.3]} 47.
Kf3 {[%clk 0:00:08.5]} 47... Qf1+ {[%clk 0:00:01.3]} 48. Kg4 {[%clk 0:00:08.8]}
48... Qe2+ {[%clk 0:00:01.8]} 49. Kf5 {[%clk 0:00:05.1]} 49... Qh5+ {[%clk
0:00:01.6]} 50. Kf4 {[%clk 0:00:05.7]} 50... Qg5+ {[%clk 0:00:01.5]} 51. Kf3
{[%clk 0:00:06.1]} 51... Qh5+ {[%clk 0:00:01.8]} 52. Qg4+ {[%clk 0:00:06.5]} 1-0